{"text_format":"1","workbook":"xlsx","n_sheets":1,"sheets":["registre loueur"],"not_rendered":{"charts":0,"images":1,"macros":1,"external_links":0,"defined_names":0,"comments":0,"pivot_tables":0},"unopened":[],"bounds":{"document_bytes":16777216,"sheet_cells":100000,"rows_first":2000,"rows_last":500,"rows_between":2000,"halvings":0,"cell_chars":16384,"cell_head_chars":4096},"cells_cut":0,"cells_raw":0,"read":"whole","date_system":"1900"}

{"sheet":"registre loueur","index":0,"n_rows":43,"n_cols":17,"rows_kept":43,"cut":false,"hidden":false,"merged":[[1,4,1,12],[2,4,2,5],[2,6,2,8],[4,3,4,5],[4,7,4,8],[4,9,4,16],[5,9,5,10],[6,11,7,11],[5,2,5,3],[7,2,7,3],[7,4,7,5],[8,11,9,11],[10,11,11,11],[8,14,9,14],[6,14,7,14],[5,11,5,16]]}
[]
[null,null,null,null,"Registre du loueur "]
[null,null,null,null,"Année / mois :"]
[]
[null,null,"Etablissement :",null,null,null,"Propriétaire :",null,null,"TOTAUX"]
[null,null,"Adresse établissement :",null,null,null,null,null,null,"Collecte par l'hébergeur",null,"Collecte via une plateforme"]
[null,null,null,null,null,null,null,null,null,"Taxe collectée",0,"AIRBNB","Nuitées ",0,"BOOKING","Nuitées ",0]
[null,null,"Nature de l'hébergement :",null,null,null,null,null,null,"Plein tarif",0,null,"Collectée par plateforme",0,null,"Collectée par plateforme",0]
[null,null,null,null,null,null,"Classement","camping",null,"Exonérées",0,"ABRITEL","Nuitées ",0,"HOMELIDAYS","Nuitées ",0]
[null,null,null,null,null,null,"Tarif",0.22,null,"Nombre de personnes logées",0,null,"Collectée par plateforme",0,null,"Collectée par plateforme",0]
[null,null,null,null,null,null,null,null,null,null,null,"GITES DE FRANCE","Nuitées ",0]
[null,null,null,null,null,null,null,null,null,null,null,null,"Collectée par plateforme",0]
[]
[null,"Date arrivée\n(au format xx/xx/xxxx )","Date départ\n(au format xx/xx/xxxx )","Durée du séjour","Nb adultes","Nb enfants","Nb pers. exonérées (saisonnier ou relogement)","Nombre de nuitées payantes","Nombre de nuitées exonérées","Collecte directe par l'hébergeur\nou  \nCollecte par une plateforme","Collecté par l'hébergeur","Collecté par plateforme"]
[null,null,null,{"$f":"C15-B15","v":0},null,null,null,{"$f":"D15*E15","v":0},{"$f":"(F15+G15)*D15","v":0},null,{"$f":"IF(J15=\"Collecte par l'hébergeur\",$H$10*E15*D15,0)","v":0},{"$f":"IF(J15=\"Collecte par l'hébergeur\",0,$H$10*E15*D15)","v":0}]
[null,null,null,0,null,null,null,{"$f":"D16*E16","v":0},{"$f":"(F16+G16)*D16","v":0},null,{"$f":"IF(J16=\"Collecte par l'hébergeur\",$H$10*E16*D16,0)","v":0},{"$f":"$H$10*E16*D16","v":0}]
[null,null,null,0,null,null,null,0,0,null,{"$f":"IF(J17=\"Collecte par l'hébergeur\",$H$10*E17*D17,0)","v":0},0]
[null,null,null,0,null,null,null,0,0,null,{"$f":"$H$10*E18*D18","v":0},0]
[null,null,null,0,null,null,null,0,0,null,0,0]
[null,null,null,0,null,null,null,0,0,null,0,0]
[null,null,null,0,null,null,null,0,0,null,0,0]
[null,null,null,0,null,null,null,0,0,null,0,0]
[null,null,null,0,null,null,null,0,0,null,0,0]
[null,null,null,0,null,null,null,0,0,null,0,0]
[null,null,null,0,null,null,null,0,0,null,0,0]
[null,null,null,0,null,null,null,0,0,null,0,0]
[null,null,null,0,null,null,null,0,0,null,0,0]
[null,null,null,0,null,null,null,0,0,null,0,0]
[null,null,null,0,null,null,null,0,0,null,0,0]
[null,null,null,0,null,null,null,0,0,null,0,0]
[null,null,null,0,null,null,null,0,0,null,0,0]
[null,null,null,0,null,null,null,0,0,null,0,0]
[null,null,null,0,null,null,null,0,0,null,0,0]
[null,null,null,0,null,null,null,0,0,null,0,0]
[null,null,null,0,null,null,null,0,0,null,0,0]
[null,null,null,0,null,null,null,0,0,null,0,0]
[null,null,null,0,null,null,null,0,0,null,0,0]
[null,null,null,0,null,null,null,0,0,null,0,0]
[null,null,null,0,null,null,null,0,0,null,0,0]
[null,null,null,0,null,null,null,0,0,null,0,0]
[null,null,null,0,null,null,null,0,0,null,0,0]
[null,null,null,0,null,null,null,0,0,null,0,0]
[null,null,null,0,null,null,null,0,0,null,0,0]